[Event "IMSA Blitz Women 2019"]
[Site "Hengshui"]
[Date "2019.05.17"]
[Round "5.1"]
[White "Paehtz, Elisabeth"]
[Black "Ushenina, Anna"]
[Result "1/2-1/2"]
[ECO "D00"]
[WhiteElo "2470"]
[BlackElo "2442"]
[Annotator "RC"]
[PlyCount "145"]
[EventDate "2019.05.17"]
[EventType "blitz"]
[EventCountry "CHN"]
[SourceTitle "playchess.com"]
[Source "ChessBase"]
[SourceQuality "1"]
[TimeControl "180+2"]

1. d4 {[%emt 0:00:00]} d5 {[%emt 0:00:01]} 2. Bf4 {[%emt 0:00:00]} c5 {[%emt 0:00:03]} 3. e3 {[%emt 0:00:01]} Nc6 {[%emt 0:00:02]} 4. Nf3 {[%emt 0:00:02]} Bg4 {[%emt 0:00:06]} 5. c3 {[%emt 0:00:11]} e6 {[%emt 0:00:02]} 6. Qb3 {[%emt 0:00:04]} Qd7 {[%emt 0:00:05]} 7. Ne5 {[%emt 0:00:08]} Nxe5 {[%emt 0:00:02]} 8. Bxe5 {[%emt 0:00:02]} Ne7 {[%emt 0:00:01]} 9. dxc5 {[%emt 0:00:05]} Nc6 {[%emt 0:00:01]} 10. Bd6 {[%emt 0:00:02]} Bxd6 {[%emt 0:00:03]} 11. cxd6 {[%emt 0:00:01]} O-O {[%emt 0:00:22]} 12. Qa3 {[%emt 0:00:08]} Rfd8 {[%emt 0:00:04]} 13. Nd2 {[%emt 0:00:02]} Qxd6 {[%emt 0:00:06]} 14. Qxd6 {[%emt 0:00:02]} Rxd6 {[%emt 0:00:01]} 15. f3 {[%emt 0:00:06]} Bf5 {[%emt 0:00:06]} 16. Nb3 {[%emt 0:00:12]} Bg6 {[%emt 0:00:13]} 17. O-O-O {[%emt 0:00:16]} Ne7 {[%emt 0:00:11]} 18. Bd3 {[%emt 0:00:04]} Rc6 {[%emt 0:00:07]} 19. Bxg6 {[%emt 0:00:03]} hxg6 {[%emt 0:00:05]} 20. Rhe1 {[%emt 0:00:06]} b5 {[%emt 0:00:17]} 21. Kb1 {[%emt 0:00:12]} a5 {[%emt 0:00:05]} 22. e4 {[%emt 0:00:12]} Rb6 {[%emt 0:00:19]} 23. Rc1 {[%emt 0:00:11]} dxe4 {[%emt 0:00:16]} 24. Rxe4 {[%emt 0:00:09]} Nd5 {[%emt 0:00:02]} 25. c4 {[%emt 0:00:03]} bxc4 {[%emt 0:00:05]} 26. Rcxc4 {[%emt 0:00:09]} Rb4 {[%emt 0:00:34]} 27. Rxb4 {[%emt 0:00:06]} axb4 {[%emt 0:00:01]} 28. Nc1 {[%emt 0:00:04]} Kf8 {[%emt 0:00:09]} 29. Nd3 Rb8 30. Kc2 {[%emt 0:00:08]} Ke7 {[%emt 0:00:15]} 31. Kb3 {[%emt 0:00:03]} f5 {[%emt 0:00:01]} 32. Rc4 {[%emt 0:00:02]} Ne3 {[%emt 0:00:02]} 33. Rc7+ {[%emt 0:00:02]} Kf6 {[%emt 0:00:01]} 34. g3 {[%emt 0:00:09]} g5 {[%emt 0:00:00]} 35. Rc6 {[%emt 0:00:10]} Nf1 {[%emt 0:00:05]} 36. f4 {[%emt 0:00:12]} Nxh2 {[%emt 0:00:04]} 37. fxg5+ {[%emt 0:00:02]} Kxg5 {[%emt 0:00:01]} 38. Rxe6 {[%emt 0:00:02]} Nf1 {[%emt 0:00:01]} 39. Nxb4 {[%emt 0:00:10]} Nxg3 {[%emt 0:00:01]} 40. a4 {[%emt 0:00:10]} f4 {[%emt 0:00:01]} 41. Kc3 {[%emt 0:00:07]} Kf5 42. Rc6 {[%emt 0:00:07]} Ne4+ {[%emt 0:00:06]} 43. Kc4 {[%emt 0:00:04]} Nd2+ {[%emt 0:00:03]} 44. Kc3 {[%emt 0:00:02]} Ne4+ {[%emt 0:00:02]} 45. Kc4 {[%emt 0:00:01]} f3 {[%emt 0:00:05]} 46. Nd3 {[%emt 0:00:01]} Ra8 {[%emt 0:00:05]} 47. b3 {[%emt 0:00:06]} f2 {[%emt 0:00:03]} 48. Nxf2 {[%emt 0:00:02]} Nxf2 {[%emt 0:00:00]} 49. Rc5+ {[%emt 0:00:03]} Kf4 {[%emt 0:00:02]} 50. a5 {[%emt 0:00:02]} g5 {[%emt 0:00:01]} 51. b4 {[%emt 0:00:01]} Ne4 {[%emt 0:00:00]} 52. Rc7 {[%emt 0:00:02]} g4 {[%emt 0:00:02]} 53. Rf7+ {[%emt 0:00:02]} Ke3 {[%emt 0:00:02]} 54. Kd5 {[%emt 0:00:02]} g3 {[%emt 0:00:03]} 55. Rg7 {[%emt 0:00:05]} Rd8+ {[%emt 0:00:06]} 56. Kc6 {[%emt 0:00:01]} Kf4 {[%emt 0:00:03]} 57. a6 {[%emt 0:00:03]} Ng5 {[%emt 0:00:01]} 58. Re7 {[%emt 0:00:05]} g2 {[%emt 0:00:00]} 59. Re1 {[%emt 0:00:01]} Nf3 {[%emt 0:00:01]} 60. Rb1 {[%emt 0:00:02]} Kg3 {[%emt 0:00:05]} 61. a7 {[%emt 0:00:03]} Kf2 {[%emt 0:00:02]} 62. Rb2+ {[%emt 0:00:03]} Nd2 {[%emt 0:00:01]} 63. Rxd2+ {[%emt 0:00:01]} Rxd2 {[%emt 0:00:01]} 64. a8=Q {[%emt 0:00:01]} g1=Q {[%emt 0:00:02]} 65. Qa7+ {[%emt 0:00:02]} Kf1 {[%emt 0:00:01]} 66. Qxg1+ {[%emt 0:00:01]} Kxg1 {[%emt 0:00:02]} 67. b5 {[%emt 0:00:01]} Rc2+ {[%emt 0:00:01]} 68. Kd7 {[%emt 0:00:02]} Kf2 {[%emt 0:00:01]} 69. b6 {[%emt 0:00:01]} Ke3 {[%emt 0:00:01]} 70. b7 {[%emt 0:00:00]} Rb2 {[%emt 0:00:01]} 71. Kc8 {[%emt 0:00:01]} Rc2+ {[%emt 0:00:00]} 72. Kd7 {[%emt 0:00:01]} Rb2 {[%emt 0:00:02]} 73. Kc8 {[%emt 0:00:00]} 1/2-1/2

[Event "IMSA Blitz Women 2019"]
[Site "Hengshui"]
[Date "2019.05.17"]
[Round "5.1"]
[White "Krush, Irina"]
[Black "Abdumalik, Zhansaya"]
[Result "1-0"]
[ECO "D86"]
[WhiteElo "2422"]
[BlackElo "2464"]
[Annotator "ChessBase"]
[PlyCount "61"]
[EventDate "2019.05.17"]
[EventType "blitz"]
[EventCountry "CHN"]
[SourceTitle "playchess.com"]
[Source "ChessBase"]
[SourceQuality "1"]
[TimeControl "180+2"]

1. d4 {[%emt 0:00:00]} Nf6 {[%emt 0:00:00]} 2. c4 {[%emt 0:00:01]} g6 {[%emt 0:00:01]} 3. Nc3 d5 4. cxd5 {[%emt 0:00:02]} Nxd5 {[%emt 0:00:01]} 5. e4 {[%emt 0:00:01]} Nxc3 {[%emt 0:00:01]} 6. bxc3 {[%emt 0:00:01]} Bg7 {[%emt 0:00:01]} 7. Bc4 {[%emt 0:00:02]} c5 {[%emt 0:00:03]} 8. Ne2 {[%emt 0:00:01]} O-O {[%emt 0:00:02]} 9. O-O {[%emt 0:00:02]} Nd7 {[%emt 0:00:05]} 10. Be3 {[%emt 0:00:08]} Qc7 {[%emt 0:00:03]} 11. Rc1 {[%emt 0:00:03]} b6 {[%emt 0:00:02]} 12. f4 {[%emt 0:00:18]} Bb7 {[%emt 0:00:08]} 13. Ng3 {[%emt 0:00:02]} e6 {[%emt 0:00:16]} 14. f5 {[%emt 0:00:05]} exf5 {[%emt 0:00:19]} 15. exf5 {[%emt 0:00:02]} Qc6 {[%emt 0:00:02]} 16. Qd2 {[%emt 0:00:35]} Nf6 {[%emt 0:00:09]} 17. Bg5 {[%emt 0:00:16]} Kh8 {[%emt 0:00:31]} 18. d5 {[%emt 0:00:35]} Qd7 {[%emt 0:00:17]} 19. Bxf6 {[%emt 0:00:10]} Bxf6 {[%emt 0:00:01]} 20. Ne4 {[%emt 0:00:02]} Be5 {[%emt 0:00:03]} 21. f6 {[%emt 0:00:11]} Qg4 {[%emt 0:01:15]} 22. Qh6 {[%emt 0:00:02]} Bxh2+ {[%emt 0:00:16]} 23. Kxh2 {[%emt 0:00:09]} Qh5+ {[%emt 0:00:01]} 24. Qxh5 {[%emt 0:00:02]} gxh5 {[%emt 0:00:00]} 25. Nd6 {[%emt 0:00:07]} Bc8 {[%emt 0:00:03]} 26. Nxc8 {[%emt 0:00:07]} Raxc8 {[%emt 0:00:01]} 27. Rce1 {[%emt 0:00:02]} Rcd8 {[%emt 0:00:03]} 28. Re7 {[%emt 0:00:04]} a6 {[%emt 0:00:01]} 29. Bxa6 {[%emt 0:00:10]} Rxd5 {[%emt 0:00:01]} 30. Bc4 {[%emt 0:00:01]} Rd6 {[%emt 0:00:07]} 31. Rxf7 {[%emt 0:00:05]} 1-0

[Event "IMSA Blitz Women 2019"]
[Site "Hengshui"]
[Date "2019.05.17"]
[Round "5.2"]
[White "Tan, Zhongyi"]
[Black "Kosteniuk, Alexandra"]
[Result "1/2-1/2"]
[ECO "A35"]
[WhiteElo "2513"]
[BlackElo "2546"]
[Annotator "RC"]
[PlyCount "122"]
[EventDate "2019.05.17"]
[EventType "blitz"]
[EventCountry "CHN"]
[SourceTitle "playchess.com"]
[Source "ChessBase"]
[SourceQuality "1"]
[TimeControl "180+2"]

1. c4 {[%emt 0:00:00]} c5 {[%emt 0:00:00]} 2. Nc3 {[%emt 0:00:01]} Nc6 {[%emt 0:00:01]} 3. Nf3 {[%emt 0:00:02]} Nf6 {[%emt 0:00:00]} 4. e3 {[%emt 0:00:04]} d5 {[%emt 0:00:05]} 5. d4 {[%emt 0:00:01]} e6 {[%emt 0:00:04]} 6. a3 {[%emt 0:00:13]} a6 {[%emt 0:00:01]} 7. dxc5 {[%emt 0:00:05]} Bxc5 {[%emt 0:00:02]} 8. b4 {[%emt 0:00:01]} Bd6 {[%emt 0:00:13]} 9. Bb2 {[%emt 0:00:04]} O-O {[%emt 0:00:05]} 10. Be2 {[%emt 0:00:04]} dxc4 {[%emt 0:00:18]} 11. Bxc4 {[%emt 0:00:03]} b5 {[%emt 0:00:04]} 12. Bd3 {[%emt 0:00:23]} Ne5 {[%emt 0:00:08]} 13. Nxe5 {[%emt 0:00:33]} Bxe5 {[%emt 0:00:02]} 14. O-O {[%emt 0:00:11]} Bb7 {[%emt 0:00:10]} 15. Rc1 {[%emt 0:00:15]} Qb8 {[%emt 0:00:15]} 16. h3 {[%emt 0:00:17]} Rd8 {[%emt 0:00:03]} 17. Qe2 {[%emt 0:00:01]} Ra7 {[%emt 0:00:32]} 18. Rfd1 {[%emt 0:00:02]} Ba8 {[%emt 0:00:02]} 19. Bb1 {[%emt 0:00:41]} Rad7 {[%emt 0:00:03]} 20. Rxd7 {[%emt 0:00:03]} Rxd7 {[%emt 0:00:01]} 21. Rd1 {[%emt 0:00:16]} Qb7 {[%emt 0:00:01]} 22. f3 {[%emt 0:00:06]} Qc7 {[%emt 0:00:23]} 23. Rxd7 {[%emt 0:00:02]} Nxd7 {[%emt 0:00:01]} 24. Qc2 {[%emt 0:00:01]} g6 {[%emt 0:00:02]} 25. Nd1 {[%emt 0:00:06]} Qxc2 26. Bxc2 {[%emt 0:00:01]} Bd6 {[%emt 0:00:06]} 27. e4 {[%emt 0:00:05]} Ne5 {[%emt 0:00:12]} 28. Ne3 {[%emt 0:00:02]} Nc6 {[%emt 0:00:00]} 29. Kf2 {[%emt 0:00:03]} Kf8 {[%emt 0:00:10]} 30. Ke2 {[%emt 0:00:02]} Ke7 {[%emt 0:00:02]} 31. Bb3 {[%emt 0:00:04]} a5 {[%emt 0:00:02]} 32. bxa5 Nxa5 {[%emt 0:00:01]} 33. Bc2 {[%emt 0:00:02]} Bc6 {[%emt 0:00:05]} 34. Bd3 {[%emt 0:00:01]} Nb3 {[%emt 0:00:02]} 35. Nc2 {[%emt 0:00:04]} Bc5 {[%emt 0:00:16]} 36. Nb4 {[%emt 0:00:04]} Bd7 {[%emt 0:00:01]} 37. Nc2 {[%emt 0:00:02]} f6 {[%emt 0:00:03]} 38. Nb4 {[%emt 0:00:01]} Nd4+ {[%emt 0:00:05]} 39. Kd2 {[%emt 0:00:04]} Kd6 {[%emt 0:00:05]} 40. Nc2 {[%emt 0:00:03]} Nb3+ {[%emt 0:00:07]} 41. Kc3 {[%emt 0:00:01]} Na5 {[%emt 0:00:01]} 42. Nd4 {[%emt 0:00:02]} Bxd4+ {[%emt 0:00:05]} 43. Kxd4 {[%emt 0:00:01]} e5+ {[%emt 0:00:01]} 44. Kc3 {[%emt 0:00:01]} Kc5 {[%emt 0:00:03]} 45. Bc1 {[%emt 0:00:02]} Nc6 {[%emt 0:00:02]} 46. Be3+ {[%emt 0:00:01]} Nd4 {[%emt 0:00:01]} 47. Bb1 {[%emt 0:00:04]} Be6 {[%emt 0:00:00]} 48. Bf2 {[%emt 0:00:02]} Bc4 {[%emt 0:00:01]} 49. Bd3 {[%emt 0:00:02]} Be6 {[%emt 0:00:02]} 50. Bh4 {[%emt 0:00:02]} g5 {[%emt 0:00:03]} 51. Bf2 {[%emt 0:00:01]} h5 {[%emt 0:00:01]} 52. h4 {[%emt 0:00:02]} g4 {[%emt 0:00:02]} 53. fxg4 {[%emt 0:00:02]} Bxg4 {[%emt 0:00:02]} 54. g3 {[%emt 0:00:02]} Bf3 {[%emt 0:00:01]} 55. Be3 {[%emt 0:00:02]} Bg4 {[%emt 0:00:06]} 56. Bh6 {[%emt 0:00:01]} Ne2+ {[%emt 0:00:07]} 57. Bxe2 {[%emt 0:00:04]} Bxe2 {[%emt 0:00:01]} 58. Bg7 {[%emt 0:00:02]} Kd6 {[%emt 0:00:04]} 59. Bxf6 {[%emt 0:00:02]} Ke6 {[%emt 0:00:01]} 60. Bd8 {[%emt 0:00:02]} Bf3 {[%emt 0:00:02]} 61. Kd3 {[%emt 0:00:01]} Bg4 {[%emt 0:00:01]} 1/2-1/2

[Event "IMSA Blitz Women 2019"]
[Site "Hengshui"]
[Date "2019.05.17"]
[Round "5.2"]
[White "Gunina, Valentina"]
[Black "Khotenashvili, Bela"]
[Result "1-0"]
[ECO "B12"]
[WhiteElo "2506"]
[BlackElo "2476"]
[Annotator "RC"]
[PlyCount "91"]
[EventDate "2019.05.17"]
[EventType "blitz"]
[EventCountry "CHN"]
[SourceTitle "playchess.com"]
[Source "ChessBase"]
[SourceQuality "1"]
[TimeControl "180+2"]

1. e4 {[%emt 0:00:00]} c6 {[%emt 0:00:00]} 2. d4 {[%emt 0:00:02]} g6 {[%emt 0:00:03]} 3. Nc3 {[%emt 0:00:02]} d5 {[%emt 0:00:02]} 4. e5 {[%emt 0:00:02]} Bg7 {[%emt 0:00:02]} 5. Nf3 {[%emt 0:00:01]} Nh6 {[%emt 0:00:03]} 6. h3 {[%emt 0:00:03]} O-O {[%emt 0:00:02]} 7. Be2 {[%emt 0:00:01]} f6 {[%emt 0:00:01]} 8. O-O {[%emt 0:00:08]} Nf7 {[%emt 0:00:02]} 9. Bf4 {[%emt 0:00:07]} e6 {[%emt 0:00:12]} 10. exf6 {[%emt 0:00:06]} Qxf6 {[%emt 0:00:19]} 11. Qd2 {[%emt 0:00:04]} Nd7 {[%emt 0:00:07]} 12. Rae1 {[%emt 0:00:15]} e5 {[%emt 0:00:13]} 13. dxe5 {[%emt 0:00:03]} Ndxe5 {[%emt 0:00:01]} 14. Nxe5 {[%emt 0:00:04]} Nxe5 {[%emt 0:00:01]} 15. Bg5 {[%emt 0:00:02]} Qf5 {[%emt 0:00:20]} 16. f4 {[%emt 0:00:11]} Nc4 {[%emt 0:00:02]} 17. Bxc4 {[%emt 0:00:08]} dxc4 {[%emt 0:00:01]} 18. Ne4 {[%emt 0:00:08]} Be6 {[%emt 0:00:31]} 19. Be7 {[%emt 0:00:03]} Rfe8 {[%emt 0:00:37]} 20. Bh4 {[%emt 0:00:50]} Qd5 {[%emt 0:00:03]} 21. Qxd5 {[%emt 0:00:09]} Bxd5 {[%emt 0:00:08]} 22. Nf6+ {[%emt 0:00:02]} Bxf6 {[%emt 0:00:03]} 23. Bxf6 {[%emt 0:00:01]} Re6 {[%emt 0:00:23]} 24. Rxe6 {[%emt 0:00:09]} Bxe6 {[%emt 0:00:01]} 25. Rd1 {[%emt 0:00:18]} Kf7 {[%emt 0:00:01]} 26. Be5 {[%emt 0:00:02]} Bd5 {[%emt 0:00:06]} 27. g4 {[%emt 0:00:10]} Re8 {[%emt 0:00:07]} 28. Rf1 {[%emt 0:00:05]} Be4 {[%emt 0:00:04]} 29. c3 {[%emt 0:00:08]} Rd8 {[%emt 0:00:02]} 30. Bd4 {[%emt 0:00:03]} a5 {[%emt 0:00:07]} 31. Re1 {[%emt 0:00:03]} Re8 {[%emt 0:00:02]} 32. Kf2 {[%emt 0:00:03]} a4 {[%emt 0:00:02]} 33. Be5 {[%emt 0:00:06]} Bd5 {[%emt 0:00:08]} 34. a3 {[%emt 0:00:03]} Rd8 {[%emt 0:00:04]} 35. Rd1 {[%emt 0:00:05]} Re8 {[%emt 0:00:02]} 36. h4 {[%emt 0:00:01]} h6 {[%emt 0:00:03]} 37. Re1 {[%emt 0:00:16]} Rd8 {[%emt 0:00:03]} 38. Kg3 {[%emt 0:00:07]} Be6 {[%emt 0:00:01]} 39. Bd4 {[%emt 0:00:01]} Re8 {[%emt 0:00:04]} 40. Rf1 {[%emt 0:00:03]} Bd7 {[%emt 0:00:03]} 41. Be5 {[%emt 0:00:01]} Be6 {[%emt 0:00:01]} 42. f5 {[%emt 0:00:01]} gxf5 {[%emt 0:00:01]} 43. gxf5 {[%emt 0:00:01]} Rg8+ {[%emt 0:00:01]} 44. Kf4 {[%emt 0:00:01]} Bd5 {[%emt 0:00:01]} 45. Bd4 {[%emt 0:00:03]} Rg4+ {[%emt 0:00:03]} 46. Kxg4 {[%emt 0:00:02]} 1-0

[Event "IMSA Blitz Women 2019"]
[Site "Hengshui"]
[Date "2019.05.17"]
[Round "5.2"]
[White "Ushenina, Anna"]
[Black "Paehtz, Elisabeth"]
[Result "0-1"]
[ECO "E63"]
[WhiteElo "2442"]
[BlackElo "2470"]
[Annotator "ChessBase"]
[PlyCount "72"]
[EventDate "2019.05.17"]
[EventType "blitz"]
[EventCountry "CHN"]
[SourceTitle "playchess.com"]
[Source "ChessBase"]
[SourceQuality "1"]
[TimeControl "180+2"]

1. d4 {[%emt 0:00:00]} g6 {[%emt 0:00:00]} 2. Nf3 {[%emt 0:00:06]} Bg7 {[%emt 0:00:00]} 3. g3 {[%emt 0:00:01]} d6 {[%emt 0:00:01]} 4. Bg2 {[%emt 0:00:02]} Nf6 {[%emt 0:00:01]} 5. O-O {[%emt 0:00:02]} O-O {[%emt 0:00:02]} 6. c4 {[%emt 0:00:04]} Nc6 {[%emt 0:00:02]} 7. Nc3 {[%emt 0:00:07]} a6 {[%emt 0:00:01]} 8. Bf4 {[%emt 0:00:05]} Rb8 {[%emt 0:00:03]} 9. Rc1 {[%emt 0:00:10]} Bd7 {[%emt 0:00:02]} 10. a3 {[%emt 0:00:12]} h6 {[%emt 0:00:05]} 11. h3 {[%emt 0:00:06]} Nh5 {[%emt 0:00:10]} 12. Bd2 {[%emt 0:00:26]} e5 {[%emt 0:00:05]} 13. d5 {[%emt 0:00:22]} Ne7 {[%emt 0:00:17]} 14. e4 {[%emt 0:00:29]} Qe8 {[%emt 0:00:01]} 15. b4 {[%emt 0:00:07]} f5 {[%emt 0:00:01]} 16. c5 {[%emt 0:00:07]} Nf6 {[%emt 0:00:04]} 17. Be3 {[%emt 0:00:19]} fxe4 {[%emt 0:00:17]} 18. Nd2 {[%emt 0:00:01]} Nfxd5 {[%emt 0:00:11]} 19. Ndxe4 {[%emt 0:00:05]} Nxc3 {[%emt 0:00:11]} 20. Nxc3 {[%emt 0:00:03]} Nf5 {[%emt 0:00:05]} 21. Nd5 {[%emt 0:00:04]} Qd8 {[%emt 0:00:15]} 22. cxd6 {[%emt 0:00:02]} cxd6 {[%emt 0:00:02]} 23. Bb6 {[%emt 0:00:02]} Qe8 {[%emt 0:00:01]} 24. Bc7 {[%emt 0:00:05]} Bb5 {[%emt 0:00:14]} 25. Re1 {[%emt 0:00:06]} Rc8 {[%emt 0:00:11]} 26. Nb6 {[%emt 0:00:01]} Rxc7 {[%emt 0:00:07]} 27. Rxc7 {[%emt 0:00:02]} Nd4 {[%emt 0:00:08]} 28. Rxb7 {[%emt 0:00:11]} Bc6 {[%emt 0:00:01]} 29. Rc7 {[%emt 0:00:06]} Bxg2 {[%emt 0:00:02]} 30. Kxg2 {[%emt 0:00:01]} Qb5 {[%emt 0:00:13]} 31. Nd7 {[%emt 0:00:17]} Rf7 {[%emt 0:00:00]} 32. Rc8+ {[%emt 0:00:01]} Kh7 {[%emt 0:00:01]} 33. Nxe5 dxe5 34. Rc5 {[%emt 0:00:06]} Qb7+ {[%emt 0:00:05]} 35. f3 {[%emt 0:00:04]} Nxf3 {[%emt 0:00:03]} 36. Rf1 {[%emt 0:00:04]} Nh4+ {[%emt 0:00:05]} 0-1

[Event "IMSA Blitz Women 2019"]
[Site "Hengshui"]
[Date "2019.05.17"]
[Round "6.1"]
[White "Kosteniuk, Alexandra"]
[Black "Harika, Dronavalli"]
[Result "1/2-1/2"]
[ECO "D31"]
[WhiteElo "2546"]
[BlackElo "2492"]
[Annotator "ChessBase"]
[PlyCount "130"]
[EventDate "2019.05.17"]
[EventType "blitz"]
[EventCountry "CHN"]
[SourceTitle "playchess.com"]
[Source "ChessBase"]
[SourceQuality "1"]
[TimeControl "180+2"]

1. c4 {[%emt 0:00:00]} e6 {[%emt 0:00:00]} 2. Nc3 {[%emt 0:00:00]} d5 {[%emt 0:00:00]} 3. d4 {[%emt 0:00:02]} c6 {[%emt 0:00:00]} 4. e4 {[%emt 0:00:02]} dxe4 {[%emt 0:00:01]} 5. Nxe4 c5 6. Nf3 {[%emt 0:00:06]} cxd4 {[%emt 0:00:09]} 7. Qxd4 {[%emt 0:00:01]} Qxd4 {[%emt 0:00:09]} 8. Nxd4 {[%emt 0:00:01]} Nf6 {[%emt 0:00:08]} 9. Nxf6+ {[%emt 0:00:05]} gxf6 {[%emt 0:00:01]} 10. Bd2 {[%emt 0:00:12]} Bd7 {[%emt 0:00:07]} 11. Bc3 {[%emt 0:00:02]} Be7 {[%emt 0:00:19]} 12. g3 {[%emt 0:00:05]} Nc6 {[%emt 0:00:05]} 13. Nb5 {[%emt 0:00:01]} Rc8 {[%emt 0:00:29]} 14. Rd1 {[%emt 0:00:29]} a6 {[%emt 0:00:09]} 15. Nd6+ {[%emt 0:00:02]} Bxd6 {[%emt 0:00:01]} 16. Rxd6 {[%emt 0:00:02]} Ne5 {[%emt 0:00:18]} 17. b3 {[%emt 0:00:05]} Bc6 {[%emt 0:00:01]} 18. Bxe5 {[%emt 0:00:05]} fxe5 {[%emt 0:00:01]} 19. Rg1 {[%emt 0:00:03]} Ke7 {[%emt 0:00:01]} 20. Rd2 {[%emt 0:00:06]} Rhd8 {[%emt 0:00:05]} 21. Bd3 {[%emt 0:00:01]} e4 {[%emt 0:00:02]} 22. Be2 {[%emt 0:00:05]} f5 {[%emt 0:00:02]} 23. Kd1 {[%emt 0:00:04]} b5 {[%emt 0:00:20]} 24. Rxd8 {[%emt 0:00:04]} Rxd8+ {[%emt 0:00:01]} 25. Kc2 {[%emt 0:00:02]} e5 {[%emt 0:00:34]} 26. Kc3 {[%emt 0:00:02]} bxc4 {[%emt 0:00:06]} 27. Bxc4 {[%emt 0:00:09]} Bb5 {[%emt 0:00:01]} 28. Bxb5 {[%emt 0:00:25]} axb5 {[%emt 0:00:00]} 29. Re1 {[%emt 0:00:17]} Rd3+ {[%emt 0:00:25]} 30. Kc2 {[%emt 0:00:01]} Rf3 {[%emt 0:00:05]} 31. Re2 {[%emt 0:00:01]} b4 {[%emt 0:00:00]} 32. Kb2 {[%emt 0:00:04]} Ke6 {[%emt 0:00:03]} 33. a3 {[%emt 0:00:02]} bxa3+ {[%emt 0:00:01]} 34. Kxa3 {[%emt 0:00:01]} Kd5 {[%emt 0:00:05]} 35. Ka4 {[%emt 0:00:12]} f4 {[%emt 0:00:02]} 36. b4 {[%emt 0:00:03]} e3 {[%emt 0:00:04]} 37. fxe3 {[%emt 0:00:02]} fxe3 {[%emt 0:00:01]} 38. b5 {[%emt 0:00:02]} Ke4 {[%emt 0:00:02]} 39. b6 {[%emt 0:00:03]} Rf2 {[%emt 0:00:02]} 40. b7 {[%emt 0:00:08]} Rxe2 {[%emt 0:00:09]} 41. b8=Q {[%emt 0:00:02]} Rd2 {[%emt 0:00:01]} 42. Qb7+ {[%emt 0:00:11]} Kd4 {[%emt 0:00:04]} 43. Qb4+ {[%emt 0:00:08]} Kd3 {[%emt 0:00:02]} 44. Qb5+ {[%emt 0:00:01]} Ke4 {[%emt 0:00:02]} 45. Qc6+ {[%emt 0:00:03]} Kd3 {[%emt 0:00:00]} 46. Qd5+ {[%emt 0:00:01]} Kc2 {[%emt 0:00:02]} 47. Qe4+ {[%emt 0:00:03]} Rd3 {[%emt 0:00:03]} 48. Qxe5 {[%emt 0:00:11]} Kd2 {[%emt 0:00:00]} 49. Qb2+ {[%emt 0:00:03]} Kd1 {[%emt 0:00:01]} 50. Qb1+ {[%emt 0:00:04]} Kd2 {[%emt 0:00:01]} 51. Qb4+ {[%emt 0:00:03]} Kd1 {[%emt 0:00:02]} 52. Qe4 {[%emt 0:00:03]} Kd2 {[%emt 0:00:04]} 53. Qf4 {[%emt 0:00:11]} Kd1 {[%emt 0:00:05]} 54. Qf1+ {[%emt 0:00:06]} Kd2 {[%emt 0:00:01]} 55. Qf4 {[%emt 0:00:01]} Kd1 {[%emt 0:00:01]} 56. Qc4 {[%emt 0:00:08]} Kd2 {[%emt 0:00:02]} 57. Qb4+ {[%emt 0:00:03]} Kd1 {[%emt 0:00:01]} 58. Qg4+ {[%emt 0:00:04]} e2 {[%emt 0:00:01]} 59. Kb4 {[%emt 0:00:05]} Kd2 {[%emt 0:00:02]} 60. Qf4+ {[%emt 0:00:01]} Kd1 {[%emt 0:00:05]} 61. Qg4 {[%emt 0:00:01]} Kd2 {[%emt 0:00:03]} 62. Qf4+ {[%emt 0:00:01]} Kd1 {[%emt 0:00:04]} 63. Qg4 {[%emt 0:00:01]} Kd2 {[%emt 0:00:03]} 64. Qf4+ {[%emt 0:00:02]} Kd1 {[%emt 0:00:00]} 65. Qg4 {[%emt 0:00:00]} Kd2 {[%emt 0:00:01]} 1/2-1/2

[Event "IMSA Blitz Women 2019"]
[Site "Hengshui"]
[Date "2019.05.17"]
[Round "6.1"]
[White "Tan, Zhongyi"]
[Black "Stefanova, Antoaneta"]
[Result "0-1"]
[ECO "D15"]
[WhiteElo "2513"]
[BlackElo "2470"]
[Annotator "ChessBase"]
[PlyCount "80"]
[EventDate "2019.05.17"]
[EventType "blitz"]
[EventCountry "CHN"]
[SourceTitle "playchess.com"]
[Source "ChessBase"]
[SourceQuality "1"]
[TimeControl "180+2"]

1. c4 {[%emt 0:00:00]} c6 {[%emt 0:00:00]} 2. d4 {[%emt 0:00:04]} d5 {[%emt 0:00:00]} 3. Nf3 {[%emt 0:00:01]} Nf6 {[%emt 0:00:02]} 4. Nc3 {[%emt 0:00:01]} a6 {[%emt 0:00:00]} 5. c5 {[%emt 0:00:03]} Bf5 {[%emt 0:00:06]} 6. Qb3 {[%emt 0:00:02]} Ra7 {[%emt 0:00:15]} 7. Bf4 {[%emt 0:00:09]} Nbd7 {[%emt 0:00:05]} 8. h3 {[%emt 0:00:06]} h6 {[%emt 0:00:08]} 9. e3 {[%emt 0:00:05]} g5 {[%emt 0:00:05]} 10. Bg3 {[%emt 0:00:08]} Bg7 {[%emt 0:00:05]} 11. Be2 {[%emt 0:00:01]} O-O {[%emt 0:00:11]} 12. Ne5 {[%emt 0:00:03]} Ne4 {[%emt 0:00:16]} 13. Nxe4 {[%emt 0:00:24]} Bxe4 {[%emt 0:00:01]} 14. Nxd7 {[%emt 0:00:11]} Qxd7 {[%emt 0:00:02]} 15. f3 {[%emt 0:00:07]} Bg6 {[%emt 0:00:01]} 16. Bd3 {[%emt 0:00:06]} Bxd3 {[%emt 0:00:36]} 17. Qxd3 {[%emt 0:00:01]} Raa8 {[%emt 0:00:01]} 18. O-O {[%emt 0:00:06]} Rae8 {[%emt 0:00:41]} 19. f4 {[%emt 0:00:02]} f5 {[%emt 0:00:14]} 20. Rf2 {[%emt 0:00:03]} e6 {[%emt 0:00:03]} 21. Raf1 {[%emt 0:00:02]} Rf6 {[%emt 0:00:02]} 22. fxg5 {[%emt 0:00:15]} hxg5 {[%emt 0:00:01]} 23. Bd6 {[%emt 0:00:11]} Rh6 {[%emt 0:00:08]} 24. g4 {[%emt 0:00:06]} Rxh3 {[%emt 0:00:05]} 25. Kg2 {[%emt 0:00:19]} Rh4 {[%emt 0:00:12]} 26. gxf5 {[%emt 0:00:01]} exf5 {[%emt 0:00:03]} 27. Rxf5 {[%emt 0:00:05]} Rg4+ {[%emt 0:00:08]} 28. Kh1 {[%emt 0:00:02]} Qe6 {[%emt 0:00:11]} 29. R1f3 {[%emt 0:00:20]} Qh6+ {[%emt 0:00:04]} 30. Bh2 {[%emt 0:00:01]} Rh4 {[%emt 0:00:04]} 31. Qd2 {[%emt 0:00:03]} g4 {[%emt 0:00:01]} 32. Rg3 {[%emt 0:00:13]} Re4 33. Kg1 {[%emt 0:00:09]} Bxd4 {[%emt 0:00:05]} 34. Qg2 {[%emt 0:00:29]} Bxe3+ {[%emt 0:00:06]} 35. Kh1 {[%emt 0:00:02]} Bd4 {[%emt 0:00:04]} 36. Rf1 {[%emt 0:00:02]} Bxc5 {[%emt 0:00:02]} 37. b4 {[%emt 0:00:07]} Rxh2+ {[%emt 0:00:03]} 38. Qxh2 {[%emt 0:00:01]} Qxh2+ {[%emt 0:00:01]} 39. Kxh2 {[%emt 0:00:01]} Bd6 {[%emt 0:00:00]} 40. a3 {[%emt 0:00:01]} Re2+ 0-1